Department Family,Entity,Date,Expense type,Expense area,Supplier,Transaction number,Amount in sterling �s (Incl VAT),Supplier VAT registration number
NHS,Glos Hospitals NHS Foundation Trust,04/04/18,Finished processed goods,Inventories,Novartis Pharmaceuticals UK Limited,23047-9,"48,150.02",
NHS,Glos Hospitals NHS Foundation Trust,10/04/18,Finished processed goods,Inventories,Novartis Pharmaceuticals UK Limited,23072-11,"67,138.94",
NHS,Glos Hospitals NHS Foundation Trust,04/04/18,Finished processed goods,Inventories,Healthcare at Home Limited,23073-17,"27,120.00",
NHS,Glos Hospitals NHS Foundation Trust,10/04/18,Finished processed goods,Inventories,Celgene Limited,23115-9,"29,282.40",
NHS,Glos Hospitals NHS Foundation Trust,17/04/18,Finished processed goods,Inventories,Novartis Pharmaceuticals UK Limited,23119-19,"48,181.98",
NHS,Glos Hospitals NHS Foundation Trust,17/04/18,Finished processed goods,Inventories,Healthcare at Home Limited,23122-11,"54,240.00",
NHS,Glos Hospitals NHS Foundation Trust,10/04/18,Finished processed goods,Inventories,Bayer,23140-5,"52,440.00",
NHS,Glos Hospitals NHS Foundation Trust,17/04/18,Finished processed goods,Inventories,Bayer,23140-6,"52,440.00",
NHS,Glos Hospitals NHS Foundation Trust,04/04/18,Purchase Computers/Systems,Capital Project Control,Daisy Communications Ltd,647368,"38,956.20",
NHS,Glos Hospitals NHS Foundation Trust,04/04/18,Fresh Blood & Plasma Products,Blood Products,HA73961 NHS Blood & Transplant,662266,"80,515.92",
NHS,Glos Hospitals NHS Foundation Trust,04/04/18,Audit Fees : Internal,Trustwide Finance,PricewaterhouseCoopers LLP,665651,"25,800.00",
NHS,Glos Hospitals NHS Foundation Trust,04/04/18,Lease Rents,Shared Services-Admin,Regina Realty Limited,665654,"76,500.00",
NHS,Glos Hospitals NHS Foundation Trust,04/04/18,Computer Hardware Purchases,Computing - CGH HQ,Dell Corporation Limited,665688,"75,111.31",
NHS,Glos Hospitals NHS Foundation Trust,04/04/18,NHS Logistics control,Payables - Manual,HA70225 NHS Supply Chain,665824,"160,888.82",
NHS,Glos Hospitals NHS Foundation Trust,04/04/18,Building - External Contracts,Capital Project Control,Lift and Engineering Services Ltd,665847,"44,465.30",
NHS,Glos Hospitals NHS Foundation Trust,04/04/18,Commercial Sector,Theatre Admin GRH,Genmed.me Limited,666046,"1,244,862.40",
NHS,Glos Hospitals NHS Foundation Trust,04/04/18,Commercial Sector,Theatre Admin GRH,Genmed.me Limited,666047,"1,244,862.40",
NHS,Glos Hospitals NHS Foundation Trust,04/04/18,Commercial Sector,Theatre Admin GRH,Genmed.me Limited,666048,"-519,315.00",
NHS,Glos Hospitals NHS Foundation Trust,04/04/18,Commercial Sector,Theatre Admin GRH,Genmed.me Limited,666049,"-1,079,167.20",
NHS,Glos Hospitals NHS Foundation Trust,04/04/18,External Contracts : Other,Radiography Consultants,Everlight Radiology,666222,"59,749.99",
NHS,Glos Hospitals NHS Foundation Trust,04/04/18,Medical & Surgical Equip. : Finance & Op. Leases,Leases,Siemens Financial Services Limited,666229,"34,548.54",
NHS,Glos Hospitals NHS Foundation Trust,04/04/18,Energy Management Contracts,Energy & Utilities - CGH,Vital Energi Solutions Ltd,666606,"146,577.32",
NHS,Glos Hospitals NHS Foundation Trust,04/04/18,Electricity,Energy & Utilities - GRH,EDF Energy Customers plc,666680,"172,713.49",
NHS,Glos Hospitals NHS Foundation Trust,17/04/18,Fresh Blood & Plasma Products,Blood Products,Octapharma Limited,666871,"50,958.00",
NHS,Glos Hospitals NHS Foundation Trust,10/04/18,Gas,Energy & Utilities - GRH,Corona Energy Retail 4 Limited,666952,"27,638.30",
NHS,Glos Hospitals NHS Foundation Trust,10/04/18,Gas,Energy & Utilities - CGH,Corona Energy Retail 4 Limited,666957,"75,070.76",
NHS,Glos Hospitals NHS Foundation Trust,04/04/18,Taxi & Other Vehicle Hire,Car Parking Glos Hospitals,Pulhams & Sons Coaches Ltd,667089,"41,666.67",
NHS,Glos Hospitals NHS Foundation Trust,04/04/18,Data Lines,Computing - CGH HQ,BT Global Services,667158,"68,162.17",
NHS,Glos Hospitals NHS Foundation Trust,04/04/18,Contract : Other External,Director of Nursing,HA90180 2gether NHS Foundation Trust,667161,"75,649.58",
NHS,Glos Hospitals NHS Foundation Trust,04/04/18,Implant Procedures,Cardiology Laboratory,Biotronik UK Limited,667240,"43,560.00",
NHS,Glos Hospitals NHS Foundation Trust,10/04/18,NHS Logistics control,Payables - Manual,HA70225 NHS Supply Chain,667405,"184,406.00",
NHS,Glos Hospitals NHS Foundation Trust,04/04/18,Contract : Other External,Finance - Shared Service Recharge,Leaseguard Group Ltd,667452,"25,370.16",
NHS,Glos Hospitals NHS Foundation Trust,10/04/18,MSE General,Capital Project Control,Medilogik Limited,667539,"46,980.00",
NHS,Glos Hospitals NHS Foundation Trust,10/04/18,Computer Hardware Purchases,IT Recharges,XMA Limited,667709,"31,213.20",
NHS,Glos Hospitals NHS Foundation Trust,24/04/18,Commercial Sector,Theatre Admin GRH,Genmed.me Limited,667714,"1,244,862.40",
NHS,Glos Hospitals NHS Foundation Trust,10/04/18,Building - External Contracts,Capital Project Control,Hewer Facilities Management Limited,667890,"65,280.53",
NHS,Glos Hospitals NHS Foundation Trust,04/04/18,Other Clinical Costs,Radiography,Medecon Healthcare,668031,"33,600.00",
NHS,Glos Hospitals NHS Foundation Trust,,External Contracts : Other,Radiography,,,,
NHS,Glos Hospitals NHS Foundation Trust,10/04/18,NHS Logistics control,Payables - Manual,HA70225 NHS Supply Chain,668723,"163,382.30",
NHS,Glos Hospitals NHS Foundation Trust,04/04/18,Prescribing Control,Payables - Manual,HA79125 NHSBSA,668935,"79,531.02",
NHS,Glos Hospitals NHS Foundation Trust,04/04/18,Prescribing Control,Payables - Manual,HA79125 NHSBSA,668936,"67,089.17",
NHS,Glos Hospitals NHS Foundation Trust,17/04/18,Computer Software / License  Fees,Roster Team,Softcat Ltd,668966,"30,000.00",
NHS,Glos Hospitals NHS Foundation Trust,17/04/18,Pay - Agency Other,Capital Project Control,Max20 Project Solutions Limited,669131,"48,006.00",
NHS,Glos Hospitals NHS Foundation Trust,17/04/18,Building - External Contracts,Capital Project Control,Central Roofing & Building Services Limited,669142,"73,978.97",
NHS,Glos Hospitals NHS Foundation Trust,17/04/18,Purchase Computers/Systems,Capital Project Control,Comparex UK Limited,669210,"125,394.43",
NHS,Glos Hospitals NHS Foundation Trust,10/04/18,Training Expenses,Ophthalmology Research & Training Fund,University of Gloucestershire,669227,"27,150.00",
NHS,Glos Hospitals NHS Foundation Trust,24/04/18,X-Ray Equipment : Purchases,Nuclear Medicine,Ashby GB Ltd,669404,"32,400.00",
NHS,Glos Hospitals NHS Foundation Trust,04/04/18,Computer Hardware Purchases,Computing - CGH HQ,Dell Corporation Limited,669544,"45,786.41",
NHS,Glos Hospitals NHS Foundation Trust,17/04/18,Minor Works,Consultants-Dermtolgy-GRH,Apleona PPP Limited,669621,"30,406.38",
NHS,Glos Hospitals NHS Foundation Trust,04/04/18,C.A.P.D. Fluids,CAPD,Baxter Healthcare Limited,669835,"43,680.44",
NHS,Glos Hospitals NHS Foundation Trust,24/04/18,Purchase Computers/Systems,Capital Project Control,Softcat Ltd,670251,"49,758.00",
NHS,Glos Hospitals NHS Foundation Trust,17/04/18,NHS Logistics control,Payables - Manual,HA70225 NHS Supply Chain,670388,"159,574.28",
NHS,Glos Hospitals NHS Foundation Trust,04/04/18,C.A.P.D. Fluids,CAPD,Baxter Healthcare Limited,670749,"49,286.99",
NHS,Glos Hospitals NHS Foundation Trust,24/04/18,Building - External Contracts,Capital Project Control,Lift and Engineering Services Ltd,670763,"43,387.48",
NHS,Glos Hospitals NHS Foundation Trust,04/04/18,Other Clinical Costs,Radiography,Cobalt Health,670811,"45,415.00",
NHS,Glos Hospitals NHS Foundation Trust,04/04/18,Admin & Clerical Secondment,Hereford Clinic Rental,HA95059 Wye Valley NHS Trust,671185,"124,844.00",
NHS,Glos Hospitals NHS Foundation Trust,04/04/18,Rent,Clinical Academy - Undergraduate Management,Markey Student Property Ltd,671191,"128,713.56",
NHS,Glos Hospitals NHS Foundation Trust,04/04/18,Rent,Clinical Academy - Undergraduate Management,Markey Student Property Ltd,671192,"55,514.89",
NHS,Glos Hospitals NHS Foundation Trust,24/04/18,Medical & Surgical Equip. : Finance & Op. Leases,Leases,Shawbrook Asset Finance,671205,"46,842.02",
NHS,Glos Hospitals NHS Foundation Trust,24/04/18,Laboratory External Tests,SCBU - GRH,Chrystal Consulting Limited,671223,"60,698.99",
NHS,Glos Hospitals NHS Foundation Trust,24/04/18,Computer Hardware Purchases,Computing - CGH HQ,Dell Corporation Limited,671334,"43,160.88",
NHS,Glos Hospitals NHS Foundation Trust,24/04/18,Computer Hardware Purchases,Computing - CGH HQ,Dell Corporation Limited,671335,"37,555.66",
NHS,Glos Hospitals NHS Foundation Trust,24/04/18,Purchase Computers/Systems,Capital Project Control,Philips UK and Ireland,671341,"175,500.00",
NHS,Glos Hospitals NHS Foundation Trust,10/04/18,Non - Healthcare NHS Foundation Trust,Occupational Health,HA90180 2gether NHS Foundation Trust,671453,"77,713.00",
NHS,Glos Hospitals NHS Foundation Trust,24/04/18,Computer Hardware Purchases,Computing - CGH HQ,UPS Systems plc,671486,"40,592.08",
NHS,Glos Hospitals NHS Foundation Trust,24/04/18,Building - External Contracts,Capital Project Control,Amberstone Technology Ltd,672219,"37,429.20",
NHS,Glos Hospitals NHS Foundation Trust,24/04/18,Colour Connection,Payables - Manual,Colour Connection,672278,"58,812.84",
NHS,Glos Hospitals NHS Foundation Trust,10/04/18,Rates,Rates - CGH,Cheltenham Borough Council,672330,"87,261.00",
NHS,Glos Hospitals NHS Foundation Trust,10/04/18,Rates,Rates - GRH,Gloucester City Council,672336,"202,130.00",
NHS,Glos Hospitals NHS Foundation Trust,17/04/18,NHS Logistics control,Payables - Manual,HA70225 NHS Supply Chain,672706,"150,975.25",
NHS,Glos Hospitals NHS Foundation Trust,17/04/18,Contractual Clinical Services,Renal Dialysis,B Braun Avitum UK Limited,672729,"45,405.45",
NHS,Glos Hospitals NHS Foundation Trust,17/04/18,Contractual Clinical Services,Renal Dialysis,B Braun Avitum UK Limited,672730,"137,913.75",
NHS,Glos Hospitals NHS Foundation Trust,17/04/18,Contractual Clinical Services,Renal Dialysis,B Braun Avitum UK Limited,672733,"81,644.94",
NHS,Glos Hospitals NHS Foundation Trust,17/04/18,Laboratory Reagents,Blood Trans,IBG Immucor,672818,"57,101.27",
NHS,Glos Hospitals NHS Foundation Trust,17/04/18,Laboratory Equipment - Maintenance,Blood Trans,IBG Immucor,672819,"57,101.27",
NHS,Glos Hospitals NHS Foundation Trust,,Medical & Surgical Equipment Maintenance Contracts,Blood Trans,,,,
NHS,Glos Hospitals NHS Foundation Trust,17/04/18,External Consultancy Fees,EFD HQ,KPMG LLP,672821,"25,080.00",
NHS,Glos Hospitals NHS Foundation Trust,17/04/18,Drugs,Hereford Clinic Rental,HA95059 Wye Valley NHS Trust,672994,"200,838.62",
NHS,Glos Hospitals NHS Foundation Trust,17/04/18,Drugs,Hereford Clinic Rental,HA95059 Wye Valley NHS Trust,672995,"200,529.99",
NHS,Glos Hospitals NHS Foundation Trust,24/04/18,MSE General,Capital Project Control,Spectrum Vision Pharmaceuticals Limited,673007,"43,962.00",
NHS,Glos Hospitals NHS Foundation Trust,24/04/18,MSE General,Capital Project Control,Oticon Limited t/a Interacoustics UK,673165,"160,818.00",
NHS,Glos Hospitals NHS Foundation Trust,24/04/18,Commercial Sector,Theatre Admin GRH,Genmed.me Limited,673302,"-306,319.63",
NHS,Glos Hospitals NHS Foundation Trust,17/04/18,Medical & Surgical Equipment Maintenance Contracts,Radiography,HA70214 NHS Supply Chain,673417,"50,392.26",
NHS,Glos Hospitals NHS Foundation Trust,,X-Ray Equipment : Maintenance,Radiography,,,,
NHS,Glos Hospitals NHS Foundation Trust,13/04/18,STAFFFlow,Payables - Manual,Liaison Financial SVS Clients A/C,673646,"99,013.41",
NHS,Glos Hospitals NHS Foundation Trust,24/04/18,Laboratory Reagents,Blood Trans,IBG Immucor,674471,"57,101.27",
NHS,Glos Hospitals NHS Foundation Trust,19/04/18,Clinical Negligence,Trustwide Finance,HA70362 NHS Litigation Authority,674625,"1,811,176.90",
NHS,Glos Hospitals NHS Foundation Trust,19/04/18,STAFFFlow,Payables - Manual,Liaison Financial SVS Clients A/C,674630,"80,124.81",
NHS,Glos Hospitals NHS Foundation Trust,19/04/18,STAFFFlow,Payables - Manual,Liaison Financial SVS Clients A/C,674635,"82,550.09",
NHS,Glos Hospitals NHS Foundation Trust,27/04/18,STAFFFlow,Payables - Manual,Liaison Financial SVS Clients A/C,676556,"88,059.50",
NHS,Glos Hospitals NHS Foundation Trust,04/04/18,Finished processed goods,Inventories,Roche Products Limited,9817-31,"31,157.40",
NHS,Glos Hospitals NHS Foundation Trust,04/04/18,Finished processed goods,Inventories,Bristol Myers Squibb Pharmaceuticals Limited,9818-33,"26,242.38",
NHS,Glos Hospitals NHS Foundation Trust,10/04/18,Finished processed goods,Inventories,Roche Products Limited,9824-39,"73,610.90",
NHS,Glos Hospitals NHS Foundation Trust,10/04/18,Finished processed goods,Inventories,Janssen Cilag Limited,9829-37,"45,742.80",
NHS,Glos Hospitals NHS Foundation Trust,10/04/18,Finished processed goods,Inventories,Roche Products Limited,9829-40,"61,599.00",
NHS,Glos Hospitals NHS Foundation Trust,17/04/18,Finished processed goods,Inventories,Janssen Cilag Limited,9833-41,"27,445.68",
NHS,Glos Hospitals NHS Foundation Trust,17/04/18,Finished processed goods,Inventories,Roche Products Limited,9837-37,"28,980.60",
NHS,Glos Hospitals NHS Foundation Trust,24/04/18,Finished processed goods,Inventories,Roche Products Limited,9843-39,"51,414.36",
NHS,Glos Hospitals NHS Foundation Trust,24/04/18,Finished processed goods,Inventories,Bayer,9846-23,"30,939.60",
NHS,Glos Hospitals NHS Foundation Trust,24/04/18,Finished processed goods,Inventories,Novartis Pharmaceuticals UK Limited,9846-51,"47,767.68",
NHS,Glos Hospitals NHS Foundation Trust,17/04/18,Finished processed goods,Inventories,Aah Pharmaceuticals Limited,9849-13,"47,340.00",
NHS,Glos Hospitals NHS Foundation Trust,17/04/18,Finished processed goods,Inventories,Aah Pharmaceuticals Limited,9849-19,"28,404.00",
NHS,Glos Hospitals NHS Foundation Trust,17/04/18,Finished processed goods,Inventories,Aah Pharmaceuticals Limited,9849-30,"47,340.00",
NHS,Glos Hospitals NHS Foundation Trust,24/04/18,Finished processed goods,Inventories,Janssen Cilag Limited,9850-40,"43,506.24",
